bitfinex/quotes_SOLUSD_20220311
["timestamp","ask_amount","ask_price","bid_price","bid_amount"]
[1646980715775,6.0,82.126,82.071,62.28661238]
[1646980716174,6.09,82.148,82.072,128.8]
[1646980716378,6.089,82.157,82.11,18.2574]
[1646980716578,6.087,82.169,82.11,18.2574]
[1646980716975,6.087,82.17,82.079,6.087]
[1646980717176,20.627,82.17,82.08,6.0]
[1646980717377,26.02909417,82.161,82.057,6.089]
[1646980717576,33.05117957,82.148,82.064,6.089]
[1646980717778,59.08027374,82.148,82.064,17.15051442]
[1646980717980,18.2673,82.14,82.066,59.51064157]
[1646980718176,18.2673,82.14,82.067,6.089]
[1646980718578,18.2673,82.14,82.051,24.1715]
[1646980718579,128.889,82.139,82.051,24.1715]
[1646980718775,122.8,82.137,82.051,24.1715]
[1646980718977,122.8,82.137,82.052,17.15900233]
[1646980719181,122.8,82.129,82.053,6.09]
[1646980719378,14.54,82.12,82.053,6.09]
[1646980719582,14.54,82.12,82.052,17.15900233]
[1646980719778,3.04447957,82.119,82.033,6.091]
[1646980719981,12.091,82.118,82.032,6.091]
[1646980720178,12.091,82.118,82.034,17.16777293]
[1646980720380,3.04447957,82.117,82.034,17.16777293]
[1646980720578,5.43745839,82.115,82.034,58.36604421]
[1646980720781,14.54,82.1,82.034,58.36604421]
[1646980720979,23.624,82.099,82.035,17.16777293]
[1646980721181,26.66847957,82.099,82.035,17.16777293]
[1646980721379,6.091,82.098,82.035,17.16777293]
[1646980721683,122.8,82.097,82.035,17.16777293]
[1646980721886,6.091,82.096,82.002,24.22374377]
[1646980722079,122.8,82.095,82.003,24.2755]
[1646980722280,14.54,82.08,82.003,24.2755]
[1646980722480,61.7227943,82.079,82.004,49.60098299]
[1646980722679,61.7227943,82.079,82.004,66.77866139]
[1646980723081,61.7227943,82.079,82.005,17.1776784]
[1646980723482,6.0,82.078,82.02,18.2785]
[1646980723884,61.7227943,82.079,82.02,18.2785]
[1646980724286,48.5638,82.079,82.021,17.17297128]
[1646980724684,48.5638,82.079,82.03,18.2763]
[1646980725284,48.5638,82.079,82.031,49.09612808]
[1646980727486,6.0,82.078,82.031,49.09612808]
[1646980727692,48.5638,82.079,82.031,49.09612808]
[1646980728490,6.0,82.078,82.031,49.09612808]
[1646980728690,48.5638,82.079,82.031,49.09612808]
[1646980728889,6.0,82.078,82.031,49.09612808]
[1646980729093,48.5638,82.079,82.031,49.09612808]
[1646980730293,14.54,82.1,82.031,49.09612808]
[1646980730494,6.093,82.11,82.032,128.8]
[1646980730693,30.888,82.127,82.033,0.25]
[1646980730895,30.888,82.127,82.035,61.39]
[1646980731097,24.797,82.127,82.081,50.5107537]
[1646980731512,14.54,82.13,82.081,58.0807537]
[1646980731707,20.629,82.15,82.082,122.8]
[1646980731909,14.54,82.17,82.083,6.0]
[1646980732113,6.088,82.173,82.12,18.2557]
[1646980732313,6.087,82.179,82.122,122.8]
[1646980732510,6.087,82.179,82.123,6.0]
[1646980732708,6.086,82.22,82.124,0.25]
[1646980733112,28.19576084,82.219,82.131,122.8]
[1646980733309,31.24024041,82.219,82.132,6.0]
[1646980733510,3.04447957,82.218,82.133,122.8]
[1646980733811,31.24024041,82.218,82.138,233.39921748]
[1646980734010,28.19576084,82.217,82.139,6.0]
[1646980734613,6.0,82.216,82.139,6.0]
[1646980735009,28.19576084,82.215,82.139,6.0]
[1646980735211,28.19576084,82.215,82.14,18.2485]
[1646980735411,28.19576084,82.215,82.138,172.00921748]
[1646980735612,28.19576084,82.215,82.138,49.20921748]
[1646980736014,28.19576084,82.215,82.139,6.0]
[1646980736217,28.19576084,82.215,82.138,49.20921748]
[1646980736413,3.04447957,82.214,82.15,18.2476]
[1646980736614,3.04447957,82.214,82.151,60.10288789]
[1646980736814,28.19576084,82.215,82.151,60.10288789]
[1646980737018,28.19576084,82.215,82.152,6.0]
[1646980737219,28.19576084,82.215,82.151,60.10288789]
[1646980739013,6.0,82.214,82.151,60.10288789]
[1646980739616,12.083,82.214,82.151,60.10288789]
[1646980741122,6.0,82.214,82.151,60.10288789]
[1646980741923,18.2495,82.22,82.151,60.10288789]
[1646980742325,6.0,82.219,82.151,60.10288789]
[1646980742528,6.083,82.218,82.151,60.10288789]
[1646980742926,6.083,82.219,82.151,60.10288789]
[1646980744829,14.54,82.22,82.16,18.2465]
[1646980745328,14.54,82.22,82.151,60.10288789]
[1646980746125,32.7895,82.22,82.151,60.10288789]
[1646980746325,6.0,82.219,82.151,60.10288789]
[1646980748332,48.17329203,82.223,82.16,18.2462]
[1646980748532,48.17329203,82.223,82.161,6.0]
[1646980748731,48.17329203,82.223,82.161,9.04447957]
[1646980748932,48.17329203,82.223,82.161,3.04447957]
[1646980749532,48.17329203,82.223,82.16,18.2462]
[1646980749932,6.0,82.222,82.16,18.2462]
[1646980750135,6.0,82.222,82.151,60.10288789]
[1646980750336,14.54,82.22,82.151,60.10288789]
[1646980750534,18.254,82.2,82.151,60.10288789]
[1646980750734,10.19246066,82.199,82.151,60.10288789]
[1646980751339,22.6213,82.209,82.151,60.10288789]
[1646980753239,22.6213,82.209,82.152,3.04447957]
[1646980753639,22.6213,82.209,82.153,6.0]
[1646980754044,22.6213,82.209,82.16,18.2464]
[1646980755839,6.0,82.208,82.16,18.2464]
[1646980756040,6.0,82.207,82.16,18.2464]
[1646980756245,22.6213,82.209,82.16,18.2464]
[1646980756446,6.0,82.208,82.16,18.2464]
[1646980756643,6.0,82.207,82.16,18.2464]
[1646980756844,22.6213,82.209,82.16,18.2464]
[1646980757043,2.324489,82.208,82.16,18.2464]
[1646980757244,2.324489,82.208,82.151,60.10288789]
[1646980757443,2.324489,82.208,82.152,6.0]
[1646980757651,6.0,82.207,82.151,60.10288789]
[1646980763560,22.6213,82.209,82.151,60.10288789]
[1646980766980,6.0,82.208,82.151,60.10288789]
[1646980767586,6.0,82.208,82.13,18.253]
[1646980767782,18.2539,82.2,82.13,18.253]
[1646980768189,32.7939,82.2,82.13,18.253]
[1646980768482,23.692,82.199,82.13,18.253]
[1646980768682,10.23860012,82.198,82.131,55.7115315]
[1646980774689,6.0,82.197,82.131,55.7115315]
[1646980775291,128.8,82.197,82.131,55.7115315]
[1646980776093,18.2584,82.18,82.131,55.7115315]
[1646980776294,25.12985257,82.178,82.131,55.7115315]
[1646980779003,6.0,82.177,82.131,55.7115315]
[1646980779202,25.12985257,82.178,82.131,55.7115315]
[1646980779402,6.0,82.177,82.131,55.7115315]
[1646980779602,6.0,82.176,82.131,55.7115315]
[1646980779803,25.12985257,82.178,82.131,55.7115315]
[1646980780204,6.0,82.177,82.131,55.7115315]
[1646980780404,25.12985257,82.178,82.131,55.7115315]
[1646980780805,6.0,82.177,82.131,55.7115315]
[1646980781005,6.0,82.176,82.131,55.7115315]
[1646980781213,25.12985257,82.178,82.131,55.7115315]
[1646980781408,6.0,82.177,82.131,55.7115315]
[1646980781610,25.12985257,82.178,82.131,55.7115315]
[1646980781808,6.0,82.177,82.131,55.7115315]
[1646980782008,25.12985257,82.178,82.131,55.7115315]
[1646980782808,23.6476,82.179,82.131,55.7115315]
[1646980784639,28.19576084,82.204,82.131,55.7115315]
[1646980784838,22.9906,82.203,82.131,55.7115315]
[1646980785040,22.9906,82.203,82.132,6.0]
[1646980785238,27.00948065,82.199,82.132,6.0]
[1646980785441,22.9906,82.203,82.132,6.0]
[1646980786138,22.9906,82.203,82.14,18.2503]
[1646980787138,22.9906,82.203,82.141,6.0]
[1646980787539,22.9906,82.203,82.14,18.2503]
[1646980787738,22.6114,82.189,82.14,18.2503]
[1646980787939,22.6114,82.189,82.141,6.0]
[1646980788139,22.6114,82.189,82.14,18.2503]
[1646980788843,22.9906,82.203,82.14,18.2503]
[1646980789040,22.9906,82.203,82.15,18.246]
[1646980789743,22.9906,82.203,82.151,56.85786162]
[1646980791045,31.61101574,82.202,82.151,56.85786162]
[1646980791247,22.9906,82.203,82.151,56.85786162]
[1646980791560,6.0,82.202,82.16,18.2458]
[1646980791747,6.0,82.221,82.16,18.2458]
[1646980791947,6.0,82.221,82.161,9.04447957]
[1646980792153,6.0,82.221,82.161,33.87961807]
[1646980792348,6.0,82.221,82.162,122.8]
[1646980792546,6.0,82.221,82.164,47.58866196]
[1646980792748,6.0,82.221,82.165,6.0]
[1646980793247,28.19576084,82.236,82.165,6.0]
[1646980793446,16.13702178,82.254,82.166,20.17092132]
[1646980793646,14.54,82.26,82.167,6.0]
[1646980793848,48.0221,82.259,82.168,122.8]
[1646980794049,3.04447957,82.255,82.169,6.0]
[1646980794247,30.24348346,82.247,82.17,122.8]
[1646980794557,24.0948,82.246,82.171,23.12644175]
[1646980794749,5.12496923,82.234,82.171,26.17092132]
[1646980794947,24.0948,82.246,82.173,122.8]
[1646980795147,24.0948,82.246,82.174,6.0]
[1646980795546,24.0948,82.246,82.174,3.04447957]
[1646980795946,33.54877381,82.241,82.174,3.04447957]
[1646980796348,24.0948,82.246,82.174,3.04447957]
[1646980796547,24.0948,82.246,82.175,6.0]
[1646980796947,24.0948,82.246,82.176,3.04447957]
[1646980797149,24.0948,82.246,82.177,6.0]
[1646980797349,29.33504274,82.221,82.178,56.91923455]
[1646980798048,6.0,82.22,82.178,56.91923455]
[1646980798252,14.54,82.24,82.178,56.91923455]
[1646980798648,24.0948,82.246,82.178,56.91923455]
[1646980799352,33.96798972,82.237,82.178,56.91923455]
[1646980799551,33.96798972,82.237,82.179,6.0]
[1646980799748,33.96798972,82.237,82.178,59.96371412]
[1646980799951,23.6828,82.236,82.178,59.96371412]
[1646980800751,23.6828,82.236,82.179,122.8]
[1646980800951,23.6828,82.236,82.18,6.0]
[1646980801451,24.0849,82.258,82.181,3.04447957]
[1646980801654,14.54,82.28,82.182,6.0]
[1646980801857,18.4973,82.294,82.191,122.8]
[1646980802052,18.4973,82.294,82.193,122.8]
[1646980802272,39.42539536,82.293,82.195,180.04939578]
[1646980802453,39.42539536,82.293,82.197,122.8]
[1646980802651,23.1898,82.291,82.198,6.0]
[1646980802852,23.1898,82.291,82.199,122.8]
[1646980803151,6.0,82.29,82.2,6.0]
[1646980803354,6.0,82.29,82.2,67.39]
[1646980803652,6.0,82.29,82.2,70.43447957]
[1646980803851,6.0,82.29,82.201,3.04447957]
[1646980804051,6.0,82.29,82.202,6.0]
[1646980804454,6.0,82.29,82.203,3.04447957]
[1646980804752,6.0,82.29,82.204,6.25]
[1646980804952,6.0,82.29,82.205,122.8]
[1646980805153,6.0,82.29,82.207,122.8]
[1646980805353,23.9423,82.301,82.213,122.8]
[1646980805553,24.8151,82.313,82.218,61.39]
[1646980805753,24.8151,82.313,82.223,184.19]
[1646980805959,24.8151,82.313,82.225,122.8]
[1646980806154,24.8151,82.313,82.227,122.8]
[1646980806355,24.8151,82.313,82.241,122.8]
[1646980806553,24.8151,82.313,82.243,122.8]
[1646980806757,24.8151,82.313,82.245,122.8]
[1646980806958,14.54,82.37,82.249,196.48]
[1646980807153,49.3513,82.358,82.254,61.39]
[1646980807353,49.3513,82.358,82.261,122.8]
[1646980807554,49.3513,82.358,82.267,184.19]
[1646980807753,49.3513,82.358,82.273,122.8]
[1646980807953,49.3513,82.358,82.278,61.39]
[1646980808154,49.3513,82.358,82.28,51.37744751]
[1646980808956,1.44233802,82.339,82.28,51.37744751]
[1646980809154,49.3513,82.358,82.28,51.37744751]
[1646980809558,49.3513,82.358,82.28,54.42192708]
[1646980809756,6.0,82.357,82.28,54.42192708]
[1646980810382,6.0,82.357,82.281,6.0]
[1646980810681,6.0,82.357,82.281,9.04447957]
[1646980811279,6.0,82.357,82.281,6.0]
[1646980811883,6.0,82.357,82.282,3.04447957]
[1646980812084,6.0,82.357,82.283,6.0]
[1646980812481,6.0,82.357,82.284,3.04447957]
[1646980812681,6.0,82.357,82.285,6.0]
[1646980814287,18.221,82.35,82.285,6.0]
[1646980814486,49.3513,82.358,82.28,51.37744751]
[1646980814690,49.3513,82.358,82.281,6.0]
[1646980818089,6.0,82.357,82.281,6.0]
[1646980820692,6.0,82.357,82.282,0.25]
[1646980820893,6.0,82.357,82.282,3.29447957]
[1646980821091,6.0,82.357,82.283,9.04447957]
[1646980821492,17.9481,82.401,82.291,61.39]
[1646980821692,23.7058,82.4,82.292,6.25]
[1646980821895,38.2458,82.4,82.292,9.29447957]
[1646980822092,38.2458,82.4,82.298,184.19]
[1646980822293,38.2458,82.4,82.299,6.0]
[1646980822596,32.97234092,82.399,82.301,61.39]
[1646980822793,18.2121,82.39,82.302,6.0]
[1646980822994,18.2121,82.39,82.302,9.04447957]
[1646980823195,14.54,82.39,82.302,9.04447957]
[1646980823395,14.54,82.39,82.303,3.04447957]
[1646980823596,23.7058,82.389,82.304,6.0]
[1646980823997,23.7058,82.389,82.301,6.0]
[1646980825100,18.2142,82.38,82.301,6.0]
[1646980825299,9.13342968,82.378,82.301,6.0]
[1646980826000,3.04447957,82.377,82.3,64.33966716]
[1646980826199,125.84447957,82.377,82.3,64.33966716]
[1646980826602,3.04447957,82.376,82.284,3.04447957]
[1646980826900,122.8,82.369,82.285,6.0]
[1646980827099,122.8,82.359,82.264,3.04447957]
[1646980827299,122.8,82.349,82.251,3.04447957]
[1646980827502,122.8,82.347,82.252,53.57765087]
[1646980827701,129.88,82.347,82.252,53.57765087]
[1646980827899,3.04447957,82.346,82.252,53.57765087]
[1646980828099,18.2296,82.31,82.252,53.57765087]
[1646980828303,9.13342968,82.308,82.252,53.57765087]
[1646980831312,9.13342968,82.308,82.232,24.75354628]
[1646980831511,60.7901,82.3,82.22,12.68296855]
[1646980831811,203.4201,82.3,82.219,24.75354628]
[1646980832013,27.83447957,82.299,82.21,3.04447957]
[1646980832212,27.83447957,82.299,82.212,57.71367555]
[1646980832413,3.04447957,82.298,82.213,6.0]
[1646980832615,24.79,82.299,82.213,33.79802585]
[1646980832817,24.79,82.299,82.214,3.04447957]
[1646980833016,24.79,82.299,82.215,6.0]
[1646980833217,24.79,82.299,82.215,30.75354628]
[1646980833522,6.0,82.298,82.216,27.79802585]
[1646980833719,6.0,82.298,82.217,6.0]
[1646980833917,6.0,82.298,82.217,33.79802585]
[1646980834117,6.0,82.298,82.218,3.04447957]
[1646980834317,6.0,82.298,82.219,6.0]
[1646980834517,6.0,82.298,82.219,30.75354628]
[1646980834818,6.0,82.298,82.22,3.04447957]
[1646980835020,6.0,82.298,82.221,6.0]
[1646980835320,6.0,82.298,82.222,3.04447957]
[1646980835618,6.0,82.298,82.223,6.0]
[1646980836020,6.0,82.298,82.224,3.04447957]
[1646980836220,6.0,82.298,82.225,57.45065994]
[1646980836529,6.0,82.298,82.226,3.04447957]
[1646980836729,128.8,82.298,82.226,3.04447957]
[1646980836930,128.8,82.298,82.199,12.69786589]
[1646980836931,18.2409,82.26,82.199,12.69786589]
[1646980837329,3.04447957,82.259,82.16,14.54]
[1646980837531,3.04447957,82.259,82.179,12.70037295]
[1646980837728,81.31274092,82.258,82.18,53.41452049]
[1646980837933,81.31274092,82.258,82.181,61.39]
[1646980838130,81.31274092,82.258,82.181,67.39]
[1646980838330,81.31274092,82.258,82.182,6.0]
[1646980838532,81.31274092,82.258,82.182,122.8]
[1646980838733,81.31274092,82.258,82.183,61.39]
[1646980840535,81.31274092,82.258,82.18,53.41452049]
[1646980840731,6.0,82.257,82.18,53.41452049]
[1646980841436,6.0,82.257,82.181,6.0]
[1646980841731,48.3404,82.258,82.183,122.8]
[1646980841933,48.3404,82.258,82.184,6.0]
[1646980842133,48.3404,82.258,82.185,122.8]
[1646980842335,48.3404,82.258,82.186,6.0]
[1646980842737,48.3404,82.258,82.188,122.8]
[1646980842935,48.3404,82.258,82.189,6.0]
[1646980843138,48.3404,82.258,82.19,122.8]
[1646980843336,48.3404,82.258,82.191,6.0]
[1646980843937,48.3404,82.258,82.19,6.0]
[1646980844138,48.3404,82.258,82.184,6.0]
[1646980845541,48.3404,82.258,82.185,122.8]
[1646980845740,48.3404,82.258,82.186,6.0]
[1646980846339,48.3404,82.258,82.184,6.0]
[1646980847046,6.0,82.257,82.184,6.0]
[1646980847239,6.0,82.257,82.182,6.0]
[1646980847440,6.0,82.256,82.182,6.0]
[1646980847639,48.3404,82.258,82.181,6.0]
[1646980849141,48.3404,82.258,82.181,32.28968896]
[1646980852247,6.0,82.257,82.181,32.28968896]
[1646980852448,48.3404,82.258,82.181,32.28968896]
[1646980854248,6.0,82.257,82.181,32.28968896]
[1646980854650,48.3404,82.258,82.181,6.0]
[1646980854852,6.0,82.257,82.181,6.0]
[1646980855050,6.0,82.257,82.181,32.28968896]
[1646980856254,48.3404,82.258,82.181,32.28968896]
[1646980857655,48.3404,82.258,82.181,6.0]
[1646980858055,48.3404,82.258,82.18,53.41452049]
[1646980858457,48.3404,82.258,82.181,6.0]
[1646980858856,48.3404,82.258,82.181,32.28968896]
[1646980859057,48.3404,82.258,82.182,26.28968896]
[1646980859256,48.3404,82.258,82.183,6.0]
[1646980859456,44.83782751,82.257,82.183,6.0]
[1646980859757,38.83782751,82.257,82.183,6.0]
[1646980859957,6.0,82.256,82.183,6.0]
[1646980860158,6.0,82.255,82.183,6.0]
[1646980860358,38.83782751,82.257,82.183,6.0]
[1646980860558,6.0,82.256,82.183,6.0]
[1646980860758,38.83782751,82.257,82.183,6.0]
[1646980861160,6.0,82.256,82.18,53.41452049]
[1646980864386,38.83782751,82.257,82.181,6.0]
[1646980867088,6.0,82.256,82.181,6.0]
[1646980867288,38.83782751,82.257,82.181,6.0]
[1646980867988,6.0,82.256,82.181,6.0]
[1646980868189,38.83782751,82.257,82.181,6.0]
[1646980868789,6.0,82.256,82.18,53.41452049]
[1646980869189,3.04447957,82.255,82.18,53.41452049]
[1646980869398,14.54,82.25,82.18,53.41452049]
[1646980869590,14.54,82.25,82.156,26.28968896]
[1646980869591,137.34,82.25,82.156,26.28968896]
[1646980869889,3.04447957,82.249,82.157,6.0]
[1646980870089,3.04447957,82.249,82.156,6.0]
[1646980870289,18.2481,82.23,82.156,6.0]
[1646980870589,3.26794309,82.228,82.157,61.33117714]
[1646980870790,3.26794309,82.228,82.158,6.0]
[1646980871189,3.26794309,82.228,82.16,18.2464]
[1646980871391,3.26794309,82.228,82.161,6.0]
[1646980873691,45.5172,82.229,82.161,6.0]
[1646980874696,37.37952432,82.228,82.161,6.0]
[1646980875295,6.0,82.227,82.161,6.0]
[1646980875592,37.37952432,82.228,82.161,6.0]
[1646980879496,6.0,82.227,82.161,6.0]
[1646980879899,37.37952432,82.228,82.161,6.0]
[1646980880101,6.0,82.227,82.161,6.0]
[1646980880500,37.37952432,82.228,82.161,6.0]
[1646980880501,6.0,82.226,82.161,6.0]
[1646980880698,37.37952432,82.228,82.158,6.0]
[1646980880898,6.0,82.227,82.158,6.0]
[1646980882100,6.0,82.227,82.16,18.2467]
[1646980882400,6.0,82.227,82.161,6.0]
[1646980883001,18.2495,82.22,82.161,6.0]
[1646980883202,32.7895,82.22,82.158,6.0]
[1646980883805,23.7667,82.219,82.158,6.0]
[1646980884006,18.2518,82.21,82.157,61.33117714]
[1646980884206,28.49294628,82.209,82.157,61.33117714]
[1646980884502,28.49294628,82.209,82.13,22.5617]
[1646980884503,28.49294628,82.209,82.129,26.28968896]
[1646980884703,28.49294628,82.209,82.119,12.70706074]
[1646980884704,28.49294628,82.209,82.113,61.39]
[1646980884903,28.49294628,82.209,82.114,50.84488896]
[1646980885306,122.8,82.208,82.115,100.2908408]
[1646980885704,28.49294628,82.209,82.12,18.2556]
[1646980886109,28.49294628,82.209,82.121,32.28968896]
[1646980886304,28.16885496,82.209,82.121,49.36027783]
[1646980886507,28.16885496,82.209,82.122,26.28968896]
[1646980886708,23.44260868,82.209,82.13,18.2527]
[1646980886903,23.44260868,82.209,82.122,46.4047574]
[1646980886904,23.44260868,82.209,82.131,128.8]
[1646980887104,23.44260868,82.209,82.131,172.16027783]
[1646980887307,23.44260868,82.209,82.132,3.04447957]
[1646980887506,23.44260868,82.209,82.133,128.8]
[1646980887707,30.73349497,82.208,82.14,18.2421]
[1646980887910,30.73349497,82.208,82.141,6.0]
[1646980888307,30.73349497,82.208,82.142,17.07058887]
[1646980888505,30.73349497,82.208,82.143,6.0]
[1646980888906,30.73349497,82.208,82.142,17.07058887]
[1646980889107,30.73349497,82.208,82.144,17.07058887]
[1646980889507,30.73349497,82.208,82.141,17.07058887]
[1646980890310,18.2541,82.2,82.141,17.07058887]
[1646980890707,23.0527,82.199,82.135,17.07058887]
[1646980891509,23.0527,82.199,82.134,58.77116716]
[1646980892510,9.04447957,82.198,82.134,58.77116716]
[1646980893211,11.37227563,82.189,82.134,58.77116716]
[1646980895114,11.37227563,82.189,82.111,61.39]
[1646980895315,18.2604,82.18,82.111,61.39]
[1646980895516,122.8,82.18,82.112,17.09248545]
[1646980895716,14.54,82.18,82.112,17.09248545]
[1646980896113,14.54,82.18,82.113,48.19748571]
[1646980896541,32.7984,82.18,82.114,17.09248545]
[1646980897518,141.0607,82.17,82.114,17.09248545]
[1646980897724,155.6007,82.17,82.059,23.0972]
[1646980897930,23.5916,82.169,82.079,18.3005]
[1646980898120,23.5916,82.169,82.088,49.38679046]
[1646980898319,23.5916,82.169,82.088,52.43127003]
[1646980898621,30.73349497,82.168,82.089,74.69804018]
[1646980898820,30.73349497,82.168,82.089,74.19804018]
[1646980899023,30.73349497,82.168,82.1,18.2607]
[1646980899224,30.73349497,82.168,82.101,17.0971015]
[1646980899426,30.73349497,82.168,82.102,61.75777027]
[1646980901030,6.0,82.167,82.102,61.75777027]
[1646980901729,6.0,82.167,82.103,17.06698071]
[1646980901933,23.5916,82.169,82.103,17.06698071]
[1646980902130,23.5916,82.169,82.104,6.0]
[1646980902530,23.5916,82.169,82.105,17.06698071]
[1646980902830,23.5916,82.169,82.106,6.0]
[1646980903130,23.5916,82.169,82.12,18.2562]
[1646980903530,23.5916,82.169,82.121,6.0]
[1646980904151,23.5916,82.169,82.122,48.53195345]
[1646980904753,23.5916,82.169,82.123,6.0]
[1646980905154,23.5916,82.169,82.122,48.53195345]
[1646980905556,23.5916,82.169,82.094,64.43447957]
[1646980905758,23.9451,82.168,82.094,3.04447957]
[1646980906156,23.9451,82.168,82.095,17.0676301]
[1646980906556,6.0,82.167,82.096,61.72930404]
[1646980906756,23.9451,82.168,82.096,55.72930404]
[1646980906957,6.0,82.167,82.097,17.0676301]
[1646980907160,23.9451,82.168,82.1,18.2601]
[1646980907357,23.9451,82.168,82.101,17.0676301]
[1646980907757,6.0,82.167,82.101,17.0676301]
[1646980908359,23.9451,82.168,82.101,17.0676301]
[1646980908958,6.0,82.167,82.101,17.0676301]
[1646980909160,23.9451,82.168,82.101,17.0676301]
[1646980909762,23.9451,82.168,82.11,18.2589]
[1646980909962,6.0,82.167,82.111,54.01203412]
[1646980910164,23.9451,82.168,82.111,54.01203412]
[1646980912862,23.9451,82.168,82.12,18.256]
[1646980914967,23.9451,82.168,82.121,6.0]
[1646980915169,23.9451,82.168,82.13,18.2539]
[1646980915567,23.9451,82.168,82.121,6.0]
[1646980915767,23.9451,82.168,82.112,6.0]
[1646980915969,39.22459407,82.167,82.112,6.0]
[1646980916169,39.22459407,82.167,82.113,17.06412119]
[1646980916570,39.22459407,82.167,82.111,54.01203412]
[1646980916970,6.0,82.166,82.111,54.01203412]
[1646980917169,39.22459407,82.167,82.111,54.01203412]
[1646980917372,39.22459407,82.167,82.112,17.07051476]
[1646980917770,39.22459407,82.167,82.111,54.01203412]
[1646980918172,39.22459407,82.167,82.112,17.07034748]
[1646980918371,18.2627,82.16,82.112,17.07034748]
[1646980918571,32.8027,82.16,82.111,54.01203412]
[1646980918776,32.8027,82.16,82.09,18.2621]
[1646980919174,32.8027,82.16,82.084,24.10456939]
[1646980919175,14.54,82.16,82.084,24.10456939]
[1646980919373,14.54,82.16,82.091,17.08589132]
[1646980919576,155.6029,82.16,82.091,17.08589132]
[1646980919775,6.0,82.159,82.092,60.5552532]
[1646980920176,24.3894,82.158,82.092,60.5552532]
[1646980920475,27.43387957,82.158,82.092,60.5552532]
[1646980921076,18.2663,82.15,82.092,60.5552532]
[1646980921276,3.38117653,82.149,82.092,60.5552532]
[1646980921476,23.0553,82.148,82.092,60.5552532]
[1646980921678,23.0553,82.148,82.08,18.2657]
[1646980922683,23.0553,82.148,82.081,58.29016359]
[1646980924302,6.0,82.147,82.081,58.29016359]
[1646980924500,6.0,82.146,82.081,58.29016359]
[1646980924701,23.0553,82.148,82.081,58.29016359]
[1646980925002,6.0,82.147,82.081,58.29016359]
[1646980925199,23.0553,82.148,82.081,58.29016359]
[1646980926205,6.0,82.147,82.081,58.29016359]
[1646980926400,23.0553,82.148,82.081,58.29016359]
[1646980927002,6.0,82.147,82.081,58.29016359]
[1646980927200,23.0553,82.148,82.081,58.29016359]
[1646980927406,6.0,82.147,82.081,58.29016359]
[1646980927607,6.0,82.146,82.081,58.29016359]
[1646980927801,23.0553,82.148,82.081,58.29016359]
[1646980928202,23.0553,82.148,82.082,17.10317792]
[1646980930002,18.2672,82.14,82.082,17.10317792]
[1646980930207,32.8072,82.14,82.082,17.10317792]
[1646980930405,32.8072,82.14,82.061,22.5801]
[1646980930604,22.9492,82.139,82.061,22.5801]
[1646980930806,22.9492,82.139,82.062,17.11783083]
[1646980931007,18.2704,82.13,82.062,17.11783083]
[1646980931204,14.54,82.12,82.062,17.11783083]
[1646980931406,23.9012,82.119,82.062,17.11783083]
[1646980931606,23.9012,82.119,82.051,17.11783083]
[1646980933008,6.0,82.118,82.051,17.11783083]
[1646980933208,6.0,82.118,82.046,17.11783083]
[1646980933411,6.0,82.118,82.047,6.0]
[1646980934010,6.0,82.118,82.048,17.11783083]
[1646980934210,6.0,82.118,82.05,18.2721]
[1646980934812,6.0,82.118,82.051,17.11783083]
[1646980935213,23.9012,82.119,82.052,17.11783083]
[1646980935614,23.9012,82.119,82.053,6.0]
[1646980936010,23.9012,82.119,82.054,17.11783083]
[1646980936411,23.9012,82.119,82.05,18.2723]